Workbook

Sheet 가격표(도,시환급금)
A1: 2026년 산모신생아 건강관리 지원사업 서비스 가격
A2: 기준가격(1일)
H3: (단위: 원)
A4: 구분 | B4: 단태아 | C4: 쌍태아 (인력1) | D4: 쌍태아 (인력2) | E4: 삼태아 (인력2) | F4: 삼태아 (인력3) | G4: 사태아 이상 (인력2) | H4: 사태아 이상 (인력4)
A5: 일반 | B5: 146.4 | C5: 183.2 | D5: 284.8 | E5: 369.6 | F5: 427.2 | G5: 398.4 | H5: 569.6
X6: (단위: 일, 천원)
A7: 구 분 | E7: 서비스기간 | H7: 서비스 가격 | K7: 정부지원금 | N7: 본인부담금(제공기관) | Q7: 추가지원 | W7: 최종 본인부담금(이용자)
Q8: 전라남도 | T8: 광양시
A9: 태아유형 | B9: 출산순위 | C9: 소득구간 (기준중위소득) | D9: 소득유형 | E9: 단축 | F9: 표준 | G9: 연장 | H9: 단축 | I9: 표준 | J9: 연장 | K9: 단축 | L9: 표준 | M9: 연장 | N9: 단축 | O9: 표준 | P9: 연장 | Q9: 단축 | R9: 표준 | S9: 연장 | T9: 단축 | U9: 표준 | V9: 연장 | W9: 단축 | X9: 표준 | Y9: 연장
A10: 단태아 | B10: 첫째아 | C10: 자격확인 | D10: A-가-①형 | E10: 5 | F10: 10 | G10: 15 | H10: 732 | I10: 1464 | J10: 2196 | K10: 659 | L10: 1165 | M10: 1525 | N10: =$H$10-K10 -> 73 | O10: =I10-L10 -> 299 | P10: =J10-M10 -> 671 | Q10: 0 | R10: 153 | S10: 190 | T10: 0 | U10: =O10-R10-X10 -> 0 | V10: 0 | W10: =N10-Q10-T10 -> 73 | X10: =O10-R10 -> 146 | Y10: =P10-S10-V10 -> 481
C11: 150%이하 | D11: A-통합-①형 | K11: 569 | L11: 1002 | M11: 1303 | N11: =$H$10-K11 -> 163 | O11: =I10-L11 -> 462 | P11: =J10-M11 -> 893 | Q11: 90 | R11: 190 | S11: 190 | T11: 0 | U11: =O11-R11-X11 -> 125.6 | V11: =U11 -> 125.6 | W11: 73 | X11: =$I$10*10% -> 146.4 | Y11: =P11-S11-V11 -> 577.4
C12: 151%초과 (예외지원) | D12: A-라-①형 | K12: 456 | L12: 764 | M12: 1035 | N12: =$H$10-K12 -> 276 | O12: =I10-L12 -> 700 | P12: =J10-M12 -> 1161 | Q12: 190 | R12: 190 | S12: 190 | T12: 12 | U12: =O12-R12-X12 -> 363.6 | V12: =U12 -> 363.6 | W12: 74 | X12: =$I$10*10% -> 146.4 | Y12: =P12-S12-V12 -> 607.4
B13: 둘째아 | C13: 자격확인 | D13: A-가-②형 | E13: 10 | F13: 15 | G13: 20 | H13: 1464 | I13: 2196 | J13: 2928 | K13: 1345 | L13: 1794 | M13: 2094 | N13: =H13-K13 -> 119 | O13: =I13-L13 -> 402 | P13: =J13-M13 -> 834 | Q13: 0 | R13: 182 | S13: 190 | T13: 0 | U13: 0 | V13: 0 | W13: 119 | X13: =O13-R13 -> 220 | Y13: =P13-S13-V13 -> 644
C14: 150%이하 | D14: A-통합-②형 | K14: 1165 | L14: 1525 | M14: 1767 | N14: =H13-K14 -> 299 | O14: =I13-L14 -> 671 | P14: =J13-M14 -> 1161 | Q14: 153 | R14: 190 | S14: 190 | T14: 0 | U14: 261.4 | V14: =U14 -> 261.4 | W14: 146 | X14: =$I$13*10% -> 219.6 | Y14: 709.6
C15: 150%초과 (예외지원) | D15: A-라-②형 | K15: 943 | L15: 1193 | M15: 1440 | N15: =H13-K15 -> 521 | O15: =I13-L15 -> 1003 | P15: =J13-M15 -> 1488 | Q15: 190 | R15: 190 | S15: 190 | T15: 184 | U15: =O15-R15-X15 -> 593.4 | V15: =U15 -> 593.4 | W15: 147 | X15: =$I$13*10% -> 219.6 | Y15: 704.6
B16: 셋째아 | C16: 자격확인 | D16: A-가-③형 | E16: 10 | F16: 15 | G16: 20 | H16: 1464 | I16: 2196 | J16: 2928 | K16: 1374 | L16: 1838 | M16: 2154 | N16: =H16-K16 -> 90 | O16: =I16-L16 -> 358 | P16: =J16-M16 -> 774 | Q16: 0 | R16: 138 | S16: 190 | T16: 0 | U16: 0 | V16: 0 | W16: 90 | X16: =O16-R16 -> 220 | Y16: =P16-S16-V16 -> 584
C17: 150%이하 | D17: A-통합-③형 | K17: 1195 | L17: 1548 | M17: 1797 | N17: =H16-K17 -> 269 | O17: =I16-L17 -> 648 | P17: =J16-M17 -> 1131 | Q17: 123 | R17: 190 | S17: 190 | T17: 0 | U17: 238.4 | V17: =U17 -> 238.4 | W17: =N17-Q17-T17 -> 146 | X17: =$I$16*10% -> 219.6 | Y17: 702.6
C18: 150%초과 (예외지원) | D18: A-라-③형 | K18: 973 | L18: 1236 | M18: 1499 | N18: =H16-K18 -> 491 | O18: =I16-L18 -> 960 | P18: =J16-M18 -> 1429 | Q18: 190 | R18: 190 | S18: 190 | T18: 154 | U18: =O18-R18-X18 -> 550.4 | V18: =U18 -> 550.4 | W18: 147 | X18: =$I$16*10% -> 219.6 | Y18: 688.6
A19: 쌍태아 | B19: 인력1명 | C19: 자격확인 | D19: B-가-①형 | E19: 10 | F19: 15 | G19: 20 | H19: 1832 | I19: 2748 | J19: 3664 | K19: 1758 | L19: 2357 | M19: 2771 | N19: =H19-K19 -> 74 | O19: =I19-L19 -> 391 | P19: =J19-M19 -> 893 | Q19: 0 | R19: 116 | S19: 190 | T19: 0 | U19: 0 | V19: 0 | W19: =N19-Q19-T19 -> 74 | X19: =O19-R19 -> 275 | Y19: 703
C20: 150%이하 | D20: B-통합-①형 | K20: 1572 | L20: 2050 | M20: 2436 | N20: =H19-K20 -> 260 | O20: =I19-L20 -> 698 | P20: =J19-M20 -> 1228 | Q20: 77 | R20: 190 | S20: 190 | T20: 0 | U20: 233.2 | V20: =U20 -> 233.2 | W20: =N20-Q20-T20 -> 183 | X20: =$I$19*10% -> 274.8 | Y20: 804.8
C21: 150%초과 (예외지원) | D21: B-라-①형 | K21: 1274 | L21: 1605 | M21: 1952 | N21: =H19-K21 -> 558 | O21: =I19-L21 -> 1143 | P21: =J19-M21 -> 1712 | Q21: 190 | R21: 190 | S21: 190 | T21: 184 | U21: 678.2 | V21: =U21 -> 678.2 | W21: 184 | X21: 274.8 | Y21: 843.8
B22: 인력2명 | C22: 자격확인 | D22: B-가-②형 | E22: 10 | F22: 15 | G22: 20 | H22: 2848 | I22: 4272 | J22: 5696 | K22: 2614 | L22: 3478 | M22: 4289 | N22: =H22-K22 -> 234 | O22: =I22-L22 -> 794 | P22: =J22-M22 -> 1407 | Q22: 0 | R22: 190 | S22: 190 | T22: 0 | U22: 176.8 | V22: =U22 -> 176.8 | W22: =N22-Q22-T22 -> 234 | X22: =$I$22*10% -> 427.2 | Y22: 1040.2
C23: 150%이하 | D23: B-통합-②형 | K23: 2369 | L23: 3165 | M23: 3915 | N23: =H22-K23 -> 479 | O23: =I22-L23 -> 1107 | P23: =J22-M23 -> 1781 | Q23: 190 | R23: 190 | S23: 190 | T23: 0 | U23: 489.8 | V23: =U23 -> 489.8 | W23: 289 | X23: =$I$22*10% -> 427.2 | Y23: 1101.2
C24: 150%초과 (예외지원) | D24: B-라-②형 | K24: 2004 | L24: 2698 | M24: 3353 | N24: =H22-K24 -> 844 | O24: =I22-L24 -> 1574 | P24: =J22-M24 -> 2343 | Q24: 190 | R24: 190 | S24: 190 | T24: 365 | U24: =O24-R24-X24 -> 956.8 | V24: =U24 -> 956.8 | W24: 289 | X24: =$I$22*10% -> 427.2 | Y24: 1196.2
A25: 삼태아 이상 | B25: 인력 2명 | C25: 자격확인 | D25: C-가-➀형 | E25: 15 | F25: 25 | G25: 40 | H25: 5544 | I25: 9240 | J25: 14784 | K25: 5431 | L25: 8303 | M25: 12088 | N25: =H25-K25 -> 113 | O25: =I25-L25 -> 937 | P25: =J25-M25 -> 2696 | Q25: 0 | R25: 13 | S25: 190 | T25: 0 | U25: 0 | V25: 0 | W25: =N25-Q25-T25 -> 113 | X25: =O25-R25 -> 924 | Y25: 2506
C26: 150%이하 | D26: C-통합-➀형 | K26: 4983 | L26: 7368 | M26: 11039 | N26: =H25-K26 -> 561 | O26: =I25-L26 -> 1872 | P26: =J25-M26 -> 3745 | Q26: 7 | R26: 190 | S26: 190 | T26: 0 | U26: 758 | V26: =U26 -> 758 | W26: 554 | X26: =$I$25*10% -> 924 | Y26: 2797
C27: 150%초과 (예외지원) | D27: C-라-➀형 | K27: 4253 | L27: 6337 | M27: 9540 | N27: =H25-K27 -> 1291 | O27: =I25-L27 -> 2903 | P27: =J25-M27 -> 5244 | Q27: 190 | R27: 190 | S27: 190 | T27: 546 | U27: 1789 | V27: =U27 -> 1789 | W27: 555 | X27: 924 | Y27: 3265
B28: 인력 3명 | C28: 자격확인 | D28: C-가-➁형 | E28: 15 | F28: 25 | G28: 40 | H28: 6408 | I28: 10680 | J28: 17088 | K28: 6278 | L28: 9596 | M28: 13968 | N28: =H28-K28 -> 130 | O28: =I28-L28 -> 1084 | P28: =J28-M28 -> 3120 | Q28: 0 | R28: 16 | S28: 190 | U28: 0 | V28: 0 | W28: =N28-Q28-T28 -> 130 | X28: =O28-R28 -> 1068 | Y28: 2476
C29: 150%이하 | D29: C-통합-➁형 | K29: 5759 | L29: 8514 | M29: 12755 | N29: =H28-K29 -> 649 | O29: =I28-L29 -> 2166 | P29: =J28-M29 -> 4333 | Q29: 8 | R29: 190 | S29: 190 | T29: 0 | U29: =O29-R29-X29 -> 908 | V29: =U29 -> 908 | W29: 641 | X29: =$I$28*10% -> 1068 | Y29: =P29-S29-V29 -> 3235
C30: 150%초과 (예외지원) | D30: C-라-➁형 | K30: 4914 | L30: 7321 | M30: 11020 | N30: =H28-K30 -> 1494 | O30: =I28-L30 -> 3359 | P30: =J28-M30 -> 6068 | Q30: 190 | R30: 190 | S30: 190 | T30: 663 | U30: =O30-R30-X30 -> 2101 | V30: =U30 -> 2101 | W30: 641 | X30: =$I$28*10% -> 1068 | Y30: =P30-S30-V30 -> 3777
A31: 사태아 이상 | B31: 인력 2명 | C31: 자격확인 | D31: D-가-➀형 | E31: 15 | F31: 25 | G31: 40 | H31: 5976 | I31: 9960 | J31: 15936 | K31: 5854 | L31: 8952 | M31: 13035 | N31: =H31-K31 -> 122 | O31: =I31-L31 -> 1008 | P31: =J31-M31 -> 2901 | Q31: 0 | R31: 12 | S31: 190 | T31: 0 | U31: 0 | V31: 0 | W31: 122 | X31: =O31-R31 -> 996 | Y31: =P31-S31-V31 -> 2711
C32: 150%이하 | D32: D-통합-➀형 | K32: 5372 | L32: 7946 | M32: 11906 | N32: =H31-K32 -> 604 | O32: =I31-L32 -> 2014 | P32: =J31-M32 -> 4030 | Q32: 6 | R32: 190 | S32: 190 | T32: 0 | U32: =O32-R32-X32 -> 828 | V32: =U32 -> 828 | W32: 598 | X32: =$I$31*10% -> 996 | Y32: =P32-S32-V32 -> 3012
C33: 150%초과 (예외지원) | D33: D-라-➀형 | K33: 4586 | L33: 6836 | M33: 10293 | N33: =H31-K33 -> 1390 | O33: =I31-L33 -> 3124 | P33: =J31-M33 -> 5643 | Q33: 190 | R33: 190 | S33: 190 | T33: 602 | U33: =O33-R33-X33 -> 1938 | V33: =U33 -> 1938 | W33: 598 | X33: =$I$31*10% -> 996 | Y33: 3515
B34: 인력 4명 | C34: 자격확인 | D34: D-가-➁형 | E34: 15 | F34: 25 | G34: 40 | H34: 8544 | I34: 14240 | J34: 22784 | K34: 8369 | L34: 12789 | M34: 18604 | N34: =H34-K34 -> 175 | O34: =I34-L34 -> 1451 | P34: =J34-M34 -> 4180 | Q34: 0 | R34: 27 | S34: 190 | T34: 0 | U34: 0 | V34: 0 | W34: =N34-Q34-T34 -> 175 | X34: =O34-R34 -> 1424 | Y34: 3990
C35: 150%이하 | D35: D-통합-➁형 | K35: 7674 | L35: 11338 | M35: 16978 | N35: =H34-K35 -> 870 | O35: =I34-L35 -> 2902 | P35: =J34-M35 -> 5806 | Q35: 16 | R35: 190 | S35: 190 | T35: 0 | U35: =O35-R35-X35 -> 1288 | V35: =U35 -> 1288 | W35: 854 | X35: =$I$34*10% -> 1424 | Y35: 4328
C36: 150%초과 (예외지원) | D36: D-라-➁형 | K36: 6542 | L36: 9740 | M36: 14655 | N36: =H34-K36 -> 2002 | O36: =I34-L36 -> 4500 | P36: =J34-M36 -> 8129 | Q36: 190 | R36: 190 | S36: 190 | T36: 957 | U36: =O36-R36-X36 -> 2886 | V36: =U36 -> 2886 | W36: 855 | X36: =$I$34*10% -> 1424 | Y36: 5053
